[Event "Early-Titled-Tuesday-Blitz-April-16-2024"]
[Site "Chess.com"]
[Date "2024.04.16"]
[Round "4"]
[White "KubaGepard"]
[Black "alexrustemov"]
[Result "1/2-1/2"]
[WhiteElo "2591"]
[BlackElo "2839"]
[TimeControl "180+1"]
[EndTime "8:41:16 PDT"]
[Termination "Game drawn by stalemate"]

1. d4 {[%clk 0:03:00.9]} 1... g6 {[%clk 0:02:59.9]} 2. Nf3 {[%clk 0:03:01.8]}
2... Bg7 {[%clk 0:02:59.6]} 3. g3 {[%clk 0:03:02.1]} 3... c5 {[%clk 0:02:59.5]}
4. Bg2 {[%clk 0:03:03]} 4... cxd4 {[%clk 0:02:59.3]} 5. Nxd4 {[%clk 0:03:03.3]}
5... Nc6 {[%clk 0:03:00]} 6. Nb3 {[%clk 0:03:02.1]} 6... Nf6 {[%clk 0:02:58.5]}
7. c4 {[%clk 0:03:00.8]} 7... d6 {[%clk 0:02:57.8]} 8. Nc3 {[%clk 0:03:00.6]}
8... Be6 {[%clk 0:02:58]} 9. c5 {[%clk 0:02:53.6]} 9... d5 {[%clk 0:02:54.5]}
10. O-O {[%clk 0:02:51.6]} 10... O-O {[%clk 0:02:52.7]} 11. Be3 {[%clk
0:02:40.2]} 11... Qd7 {[%clk 0:02:24.3]} 12. Nd4 {[%clk 0:02:30]} 12... Bh3
{[%clk 0:02:21.5]} 13. Nxc6 {[%clk 0:02:26.8]} 13... bxc6 {[%clk 0:02:19.5]} 14.
Bd4 {[%clk 0:02:26.8]} 14... Bxg2 {[%clk 0:02:12.8]} 15. Kxg2 {[%clk 0:02:27.7]}
15... Rfe8 {[%clk 0:02:06.3]} 16. Bxf6 {[%clk 0:02:11.8]} 16... Bxf6 {[%clk
0:02:05.5]} 17. e4 {[%clk 0:02:12.7]} 17... Rab8 {[%clk 0:01:50.8]} 18. exd5
{[%clk 0:02:01.3]} 18... Bxc3 {[%clk 0:01:46.7]} 19. bxc3 {[%clk 0:02:02.2]}
19... cxd5 {[%clk 0:01:45.5]} 20. Qf3 {[%clk 0:01:46.8]} 20... Rbc8 {[%clk
0:01:39.2]} 21. Rad1 {[%clk 0:01:44.2]} 21... Rxc5 {[%clk 0:01:37.4]} 22. c4
{[%clk 0:01:44.1]} 22... d4 {[%clk 0:01:34.5]} 23. Rfe1 {[%clk 0:01:30.1]} 23...
e5 {[%clk 0:01:34.3]} 24. Re4 {[%clk 0:01:24.6]} 24... f5 {[%clk 0:01:29.2]} 25.
Ree1 {[%clk 0:01:19.6]} 25... Rxc4 {[%clk 0:01:25.9]} 26. Qb3 {[%clk 0:01:19]}
26... Qd5+ {[%clk 0:01:23.9]} 27. Kg1 {[%clk 0:01:17]} 27... Rc5 {[%clk
0:01:22.3]} 28. Rxd4 {[%clk 0:01:13.5]} 28... Qxb3 {[%clk 0:01:19.8]} 29. axb3
{[%clk 0:01:14.4]} 29... Re7 {[%clk 0:01:19]} 30. Ra4 {[%clk 0:01:11.2]} 30...
Kf7 {[%clk 0:01:12.8]} 31. Rea1 {[%clk 0:01:10]} 31... Rcc7 {[%clk 0:01:11.7]}
32. Ra6 {[%clk 0:01:09.6]} 32... Rb7 {[%clk 0:01:10.2]} 33. R1a3 {[%clk
0:01:03.5]} 33... Red7 {[%clk 0:01:08.5]} 34. Kg2 {[%clk 0:01:02.8]} 34... e4
{[%clk 0:01:06.2]} 35. h4 {[%clk 0:01:00.9]} 35... Kg7 {[%clk 0:01:06.2]} 36.
R3a5 {[%clk 0:00:55.5]} 36... Rf7 {[%clk 0:00:58.8]} 37. b4 {[%clk 0:00:53.2]}
37... Kh6 {[%clk 0:00:57.6]} 38. b5 {[%clk 0:00:45.3]} 38... Rfd7 {[%clk
0:00:54.5]} 39. Ra2 {[%clk 0:00:42]} 39... Kh5 {[%clk 0:00:51.8]} 40. R6a4
{[%clk 0:00:31.2]} 40... h6 {[%clk 0:00:49.9]} 41. Ra6 {[%clk 0:00:25]} 41...
Rxb5 {[%clk 0:00:47.2]} 42. Rxa7 {[%clk 0:00:24.7]} 42... Rxa7 {[%clk
0:00:48.1]} 43. Rxa7 {[%clk 0:00:25]} 43... Rb2 {[%clk 0:00:48.8]} 44. Re7
{[%clk 0:00:23.3]} 44... Kg4 {[%clk 0:00:46.9]} 45. Re6 {[%clk 0:00:22.7]} 45...
g5 {[%clk 0:00:46.1]} 46. hxg5 {[%clk 0:00:23]} 46... hxg5 {[%clk 0:00:45.9]}
47. Re8 {[%clk 0:00:23.5]} 47... Re2 {[%clk 0:00:43.1]} 48. Re7 {[%clk
0:00:23.1]} 48... Ra2 {[%clk 0:00:32.9]} 49. Re8 {[%clk 0:00:21.9]} 49... Ra6
{[%clk 0:00:27.8]} 50. Re7 {[%clk 0:00:20.6]} 50... Rf6 {[%clk 0:00:27.4]} 51.
Re8 {[%clk 0:00:20.1]} 51... Kh5 {[%clk 0:00:27.4]} 52. Rh8+ {[%clk 0:00:19.8]}
52... Kg6 {[%clk 0:00:27.6]} 53. Re8 {[%clk 0:00:20.7]} 53... Kf7 {[%clk
0:00:26.8]} 54. Ra8 {[%clk 0:00:20.5]} 54... Re6 {[%clk 0:00:26.7]} 55. Ra7+
{[%clk 0:00:20.7]} 55... Kf6 {[%clk 0:00:27]} 56. Ra3 {[%clk 0:00:20.9]} 56...
Rc6 {[%clk 0:00:26.8]} 57. Rb3 {[%clk 0:00:20.8]} 57... Ke5 {[%clk 0:00:26.3]}
58. Rb5+ {[%clk 0:00:20.6]} 58... Kf6 {[%clk 0:00:26.6]} 59. Rb3 {[%clk
0:00:20.8]} 59... Rd6 {[%clk 0:00:27.1]} 60. Ra3 {[%clk 0:00:20.9]} 60... Ke5
{[%clk 0:00:27.3]} 61. Ra5+ {[%clk 0:00:20.9]} 61... Rd5 {[%clk 0:00:27.9]} 62.
Ra8 {[%clk 0:00:21.3]} 62... Rd2 {[%clk 0:00:27.3]} 63. Re8+ {[%clk 0:00:20.1]}
63... Kf6 {[%clk 0:00:27.6]} 64. g4 {[%clk 0:00:19.4]} 64... Rd5 {[%clk
0:00:17.6]} 65. gxf5 {[%clk 0:00:18.3]} 65... Kxf5 {[%clk 0:00:17.8]} 66. Kg3
{[%clk 0:00:18.5]} 66... Rd3+ {[%clk 0:00:17.6]} 67. Kg2 {[%clk 0:00:19]} 67...
Rf3 {[%clk 0:00:16.6]} 68. Rf8+ {[%clk 0:00:19]} 68... Kg4 {[%clk 0:00:17.2]}
69. Re8 {[%clk 0:00:19.7]} 69... Rf4 {[%clk 0:00:17.8]} 70. Re7 {[%clk
0:00:19.9]} 70... Kf5 {[%clk 0:00:18.1]} 71. Re8 {[%clk 0:00:18.9]} 71... Kf6
{[%clk 0:00:17.6]} 72. Kg3 {[%clk 0:00:17.3]} 72... Rf3+ {[%clk 0:00:15.9]} 73.
Kg2 {[%clk 0:00:17.5]} 73... Kf5 {[%clk 0:00:16.5]} 74. Rf8+ {[%clk 0:00:17.4]}
74... Kg4 {[%clk 0:00:16.9]} 75. Re8 {[%clk 0:00:18]} 75... Rf4 {[%clk
0:00:17.4]} 76. Rxe4 {[%clk 0:00:16.1]} 76... Rxe4 {[%clk 0:00:15.4]} 77. f3+
{[%clk 0:00:16.3]} 77... Kf4 {[%clk 0:00:16.3]} 78. fxe4 {[%clk 0:00:17]} 78...
Kxe4 {[%clk 0:00:17.1]} 79. Kg3 {[%clk 0:00:17.4]} 79... Kf5 {[%clk 0:00:17.6]}
80. Kf3 {[%clk 0:00:17.6]} 80... g4+ {[%clk 0:00:16.2]} 81. Kg3 {[%clk 0:00:18]}
81... Kg5 {[%clk 0:00:17.1]} 82. Kg2 {[%clk 0:00:18.4]} 82... Kf4 {[%clk
0:00:18]} 83. Kf2 {[%clk 0:00:18.8]} 83... g3+ {[%clk 0:00:18.3]} 84. Kg2 {[%clk
0:00:19.2]} 84... Kg4 {[%clk 0:00:19.2]} 85. Kg1 {[%clk 0:00:19.2]} 85... Kf3
{[%clk 0:00:19.6]} 86. Kf1 {[%clk 0:00:19.4]} 86... g2+ {[%clk 0:00:20]} 87. Kg1
{[%clk 0:00:19.4]} 87... Kg3 {[%clk 0:00:20.9]} 1/2-1/2

[Event "Early-Titled-Tuesday-Blitz-April-16-2024"]
[Site "Chess.com"]
[Date "2024.04.16"]
[Round "4"]
[White "Yeritsyaan"]
[Black "zverr1"]
[Result "1/2-1/2"]
[WhiteElo "2656"]
[BlackElo "2513"]
[TimeControl "180+1"]
[EndTime "8:41:17 PDT"]
[Termination "Game drawn - insufficient material"]

1. c4 {[%clk 0:03:00.9]} 1... c5 {[%clk 0:02:56]} 2. Nc3 {[%clk 0:03:00.9]} 2...
Nc6 {[%clk 0:02:56]} 3. e4 {[%clk 0:03:01.1]} 3... g6 {[%clk 0:02:55.9]} 4. d3
{[%clk 0:03:01.1]} 4... Bg7 {[%clk 0:02:55.9]} 5. Be3 {[%clk 0:03:01.6]} 5... d6
{[%clk 0:02:56]} 6. g3 {[%clk 0:03:00.9]} 6... e5 {[%clk 0:02:56.3]} 7. Bg2
{[%clk 0:03:00.9]} 7... Nge7 {[%clk 0:02:56.8]} 8. f4 {[%clk 0:03:00.4]} 8...
O-O {[%clk 0:02:56.8]} 9. Nf3 {[%clk 0:03:00.9]} 9... Nd4 {[%clk 0:02:52.6]} 10.
O-O {[%clk 0:02:47.7]} 10... Nec6 {[%clk 0:02:38.8]} 11. Nd5 {[%clk 0:02:44.4]}
11... Nxf3+ {[%clk 0:02:34.7]} 12. Bxf3 {[%clk 0:02:43.5]} 12... f5 {[%clk
0:02:11.9]} 13. Qd2 {[%clk 0:02:39.7]} 13... Nd4 {[%clk 0:02:10.4]} 14. Bg2
{[%clk 0:02:37]} 14... Be6 {[%clk 0:02:06.3]} 15. Rab1 {[%clk 0:02:32.7]} 15...
Qd7 {[%clk 0:01:43.2]} 16. b4 {[%clk 0:02:27.7]} 16... cxb4 {[%clk 0:01:34.5]}
17. Rxb4 {[%clk 0:02:24.8]} 17... b6 {[%clk 0:01:29.1]} 18. a4 {[%clk
0:02:18.4]} 18... Rab8 {[%clk 0:01:23.5]} 19. Rfb1 {[%clk 0:02:04.4]} 19... Kh8
{[%clk 0:01:18.6]} 20. a5 {[%clk 0:02:03.7]} 20... Nc6 {[%clk 0:01:11.5]} 21.
Rb5 {[%clk 0:02:02.4]} 21... Nxa5 {[%clk 0:00:57.3]} 22. fxe5 {[%clk 0:01:59]}
22... Bxe5 {[%clk 0:00:51.7]} 23. Nf4 {[%clk 0:01:39.5]} 23... Bg7 {[%clk
0:00:40.8]} 24. Nxe6 {[%clk 0:01:14]} 24... Qxe6 {[%clk 0:00:40.8]} 25. exf5
{[%clk 0:00:59.9]} 25... Rxf5 {[%clk 0:00:40.6]} 26. Rxa5 {[%clk 0:00:51.2]}
26... Rxa5 {[%clk 0:00:30.7]} 27. Bf2 {[%clk 0:00:41.2]} 27... Rf8 {[%clk
0:00:28]} 28. Be4 {[%clk 0:00:38.1]} 28... Re5 {[%clk 0:00:27]} 29. Bd4 {[%clk
0:00:35.9]} 29... Rxe4 {[%clk 0:00:25.9]} 30. Bxg7+ {[%clk 0:00:36.8]} 30...
Kxg7 {[%clk 0:00:26]} 31. dxe4 {[%clk 0:00:37.5]} 31... Qxe4 {[%clk 0:00:25.2]}
32. Re1 {[%clk 0:00:36.1]} 32... Qf3 {[%clk 0:00:19.1]} 33. Qd4+ {[%clk
0:00:30.5]} 33... Qf6 {[%clk 0:00:16.3]} 34. Qe3 {[%clk 0:00:26.1]} 34... Rf7
{[%clk 0:00:13.8]} 35. Rd1 {[%clk 0:00:25.6]} 35... Re7 {[%clk 0:00:13.6]} 36.
Qd3 {[%clk 0:00:23.8]} 36... Re6 {[%clk 0:00:13.6]} 37. Rf1 {[%clk 0:00:21.6]}
37... Qe5 {[%clk 0:00:13.7]} 38. Rf2 {[%clk 0:00:19.1]} 38... Qe1+ {[%clk
0:00:12.5]} 39. Kg2 {[%clk 0:00:13.9]} 39... Qe4+ {[%clk 0:00:13]} 40. Rf3
{[%clk 0:00:12.9]} 40... Qxd3 {[%clk 0:00:12.3]} 41. Rxd3 {[%clk 0:00:13.8]}
41... Kf7 {[%clk 0:00:10.5]} 42. Kf3 {[%clk 0:00:14.1]} 42... Ke7 {[%clk
0:00:10.5]} 43. Ra3 {[%clk 0:00:13.6]} 43... a5 {[%clk 0:00:09.7]} 44. Rb3
{[%clk 0:00:14.3]} 44... d5 {[%clk 0:00:03.5]} 45. cxd5 {[%clk 0:00:15.2]} 45...
Rd6 {[%clk 0:00:03.7]} 46. Ke4 {[%clk 0:00:15.8]} 46... Kf6 {[%clk 0:00:03.4]}
47. Rf3+ {[%clk 0:00:15.6]} 47... Ke7 {[%clk 0:00:03.3]} 48. Rb3 {[%clk
0:00:14.5]} 48... Kf6 {[%clk 0:00:02.8]} 49. h4 {[%clk 0:00:14.6]} 49... h5
{[%clk 0:00:02.7]} 50. Kd4 {[%clk 0:00:14.7]} 50... Kf5 {[%clk 0:00:02.3]} 51.
Rf3+ {[%clk 0:00:12.6]} 51... Kg4 {[%clk 0:00:02.9]} 52. Ra3 {[%clk 0:00:13.1]}
52... b5 {[%clk 0:00:01.6]} 53. Ke5 {[%clk 0:00:13.6]} 53... Rd8 {[%clk
0:00:01.7]} 54. Rxa5 {[%clk 0:00:13.8]} 54... Kxg3 {[%clk 0:00:01.7]} 55. Rxb5
{[%clk 0:00:13.3]} 55... Kxh4 {[%clk 0:00:02.3]} 56. d6 {[%clk 0:00:14.2]} 56...
g5 {[%clk 0:00:02.7]} 57. Rb1 {[%clk 0:00:07.3]} 57... Kg3 {[%clk 0:00:02]} 58.
Rb3+ {[%clk 0:00:06.2]} 58... Kg2 {[%clk 0:00:01.9]} 59. Kf5 {[%clk 0:00:06.5]}
59... Rxd6 {[%clk 0:00:01.4]} 60. Kxg5 {[%clk 0:00:07.2]} 60... Rd5+ {[%clk
0:00:01.9]} 61. Kh4 {[%clk 0:00:07.6]} 61... Kh2 {[%clk 0:00:01.8]} 62. Rb2+
{[%clk 0:00:07.9]} 62... Kg1 {[%clk 0:00:02]} 63. Kg3 {[%clk 0:00:08.6]} 63...
Rd3+ {[%clk 0:00:02.3]} 64. Kh4 {[%clk 0:00:08.7]} 64... Rd5 {[%clk 0:00:03]}
65. Rc2 {[%clk 0:00:09]} 65... Kf1 {[%clk 0:00:02]} 66. Ra2 {[%clk 0:00:09.5]}
66... Ke1 {[%clk 0:00:02.5]} 67. Kg3 {[%clk 0:00:10.1]} 67... Kd1 {[%clk
0:00:02.5]} 68. Kh3 {[%clk 0:00:10.6]} 68... Kc1 {[%clk 0:00:02.9]} 69. Rg2
{[%clk 0:00:11.2]} 69... Kb1 {[%clk 0:00:03.2]} 70. Rf2 {[%clk 0:00:11.9]} 70...
Ka1 {[%clk 0:00:03.4]} 71. Rg2 {[%clk 0:00:12.6]} 71... Kb1 {[%clk 0:00:03.7]}
72. Rf2 {[%clk 0:00:13.2]} 72... Ka1 {[%clk 0:00:02.9]} 73. Rg2 {[%clk
0:00:13.8]} 73... Rd3+ {[%clk 0:00:02.7]} 74. Kh4 {[%clk 0:00:13.9]} 74... Rb3
{[%clk 0:00:03.2]} 75. Kxh5 {[%clk 0:00:13.8]} 75... Rb2 {[%clk 0:00:04.1]} 76.
Rxb2 {[%clk 0:00:14.1]} 76... Kxb2 {[%clk 0:00:05]} 1/2-1/2

[Event "Early-Titled-Tuesday-Blitz-April-16-2024"]
[Site "Chess.com"]
[Date "2024.04.16"]
[Round "4"]
[White "Shahdad2007"]
[Black "Daaksboy"]
[Result "0-1"]
[WhiteElo "2601"]
[BlackElo "2242"]
[TimeControl "180+1"]
[EndTime "8:41:18 PDT"]
[Termination "Daaksboy won on time"]

1. Nf3 {[%clk 0:03:00]} 1... Nf6 {[%clk 0:02:59.9]} 2. c4 {[%clk 0:02:59.6]}
2... g6 {[%clk 0:03:00.1]} 3. g3 {[%clk 0:02:59.3]} 3... Bg7 {[%clk 0:03:00.7]}
4. Bg2 {[%clk 0:03:00.2]} 4... O-O {[%clk 0:03:01.4]} 5. O-O {[%clk 0:02:58.3]}
5... d6 {[%clk 0:03:01.9]} 6. d4 {[%clk 0:02:55.3]} 6... c5 {[%clk 0:03:02.2]}
7. Nc3 {[%clk 0:02:52.9]} 7... Nc6 {[%clk 0:03:02.6]} 8. e4 {[%clk 0:02:39.6]}
8... cxd4 {[%clk 0:03:01]} 9. Nxd4 {[%clk 0:02:39.5]} 9... Nxe4 {[%clk
0:03:01.1]} 10. Nxc6 {[%clk 0:02:23.9]} 10... Nxc3 {[%clk 0:03:00]} 11. Qc2
{[%clk 0:02:24.2]} 11... Bf5 {[%clk 0:02:53.3]} 12. Nxd8 {[%clk 0:02:23.6]}
12... Bxc2 {[%clk 0:02:52.9]} 13. Nxb7 {[%clk 0:02:23.1]} 13... Ne2+ {[%clk
0:02:50.8]} 14. Kh1 {[%clk 0:02:22.6]} 14... Rab8 {[%clk 0:02:51]} 15. Re1
{[%clk 0:02:09.5]} 15... Bd3 {[%clk 0:02:29.1]} 16. Na5 {[%clk 0:01:38.1]} 16...
Nxc1 {[%clk 0:02:27.6]} 17. Raxc1 {[%clk 0:01:33.5]} 17... Bxb2 {[%clk
0:02:26.4]} 18. Rcd1 {[%clk 0:01:32.1]} 18... Bc3 {[%clk 0:02:08.6]} 19. Nc6
{[%clk 0:01:30.9]} 19... Bxe1 {[%clk 0:02:08.3]} 20. Nxb8 {[%clk 0:01:27.2]}
20... Rxb8 {[%clk 0:02:04.9]} 21. Rxd3 {[%clk 0:01:12.4]} 21... Rb1 {[%clk
0:01:55.3]} 22. Kg1 {[%clk 0:01:04.8]} 22... Rb2 {[%clk 0:01:49.5]} 23. Kf1
{[%clk 0:00:28.4]} 23... Bxf2 {[%clk 0:01:47.5]} 24. Bd5 {[%clk 0:00:27.1]}
24... e6 {[%clk 0:01:42.3]} 25. Bc6 {[%clk 0:00:22.3]} 25... Bc5 {[%clk
0:01:41.9]} 26. h4 {[%clk 0:00:22.4]} 26... Rxa2 {[%clk 0:01:41.7]} 27. h5
{[%clk 0:00:22.6]} 27... Rf2+ {[%clk 0:01:41.6]} 28. Ke1 {[%clk 0:00:22.7]}
28... gxh5 {[%clk 0:01:41.8]} 29. Rxd6 {[%clk 0:00:23.3]} 29... Bxd6 {[%clk
0:01:34.5]} 30. Kxf2 {[%clk 0:00:22.7]} 30... Kg7 {[%clk 0:01:34]} 31. Be4
{[%clk 0:00:21.7]} 31... f5 {[%clk 0:01:33.5]} 32. Bc2 {[%clk 0:00:20.6]} 32...
Kg6 {[%clk 0:01:34.1]} 33. Kf3 {[%clk 0:00:20.7]} 33... Kg5 {[%clk 0:01:34.3]}
34. Ba4 {[%clk 0:00:20.6]} 34... h4 {[%clk 0:01:34.6]} 35. gxh4+ {[%clk
0:00:21.5]} 35... Kxh4 {[%clk 0:01:32.3]} 36. Bd7 {[%clk 0:00:21.5]} 36... a5
{[%clk 0:01:32.2]} 37. Bxe6 {[%clk 0:00:21.5]} 37... Kg5 {[%clk 0:01:33]} 38.
Bd7 {[%clk 0:00:20.3]} 38... h5 {[%clk 0:01:33.1]} 39. Kg2 {[%clk 0:00:17.2]}
39... Kg4 {[%clk 0:01:23]} 40. Kf2 {[%clk 0:00:15.3]} 40... h4 {[%clk
0:01:21.9]} 41. Kg2 {[%clk 0:00:15.1]} 41... h3+ {[%clk 0:01:21.9]} 42. Kh1
{[%clk 0:00:16]} 42... Kg5 {[%clk 0:01:13.2]} 43. Kg1 {[%clk 0:00:13.1]} 43...
Kf6 {[%clk 0:01:12]} 44. Kh1 {[%clk 0:00:12.6]} 44... Ke7 {[%clk 0:01:12.1]} 45.
Bxf5 {[%clk 0:00:12.1]} 45... a4 {[%clk 0:01:11.1]} 46. Bc2 {[%clk 0:00:10.1]}
46... a3 {[%clk 0:01:09.1]} 47. Bb3 {[%clk 0:00:10.7]} 47... Kf6 {[%clk
0:01:08.2]} 48. c5 {[%clk 0:00:11.4]} 48... Bc7 {[%clk 0:01:07.3]} 49. c6 {[%clk
0:00:11.4]} 49... Kf5 {[%clk 0:00:44.2]} 50. Ba2 {[%clk 0:00:12.3]} 50... Ke4
{[%clk 0:00:43.8]} 51. Be6 {[%clk 0:00:11.9]} 51... Kd4 {[%clk 0:00:39.6]} 52.
Ba2 {[%clk 0:00:12.3]} 52... Kc3 {[%clk 0:00:36.7]} 53. Bg8 {[%clk 0:00:13.2]}
53... Kb4 {[%clk 0:00:34]} 54. Ba2 {[%clk 0:00:12.6]} 54... Kc5 {[%clk
0:00:34.1]} 55. Bg8 {[%clk 0:00:13.5]} 55... Kxc6 {[%clk 0:00:34]} 56. Ba2
{[%clk 0:00:14.4]} 56... Kc5 {[%clk 0:00:34.6]} 57. Bg8 {[%clk 0:00:15.3]} 57...
Kb4 {[%clk 0:00:35.2]} 58. Ba2 {[%clk 0:00:16.2]} 58... Kc3 {[%clk 0:00:35.8]}
59. Bg8 {[%clk 0:00:16.8]} 59... Kb2 {[%clk 0:00:35.3]} 60. Be6 {[%clk
0:00:17.4]} 60... Be5 {[%clk 0:00:24.4]} 61. Bf7 {[%clk 0:00:17.1]} 61... Kc3
{[%clk 0:00:20.2]} 62. Be6 {[%clk 0:00:17.4]} 62... Kd2 {[%clk 0:00:20.9]} 63.
Ba2 {[%clk 0:00:17.8]} 63... Ke3 {[%clk 0:00:21.8]} 64. Bg8 {[%clk 0:00:18.4]}
64... Kd4 {[%clk 0:00:22.4]} 65. Ba2 {[%clk 0:00:19.3]} 65... Kc5 {[%clk
0:00:23.1]} 66. Bg8 {[%clk 0:00:20.2]} 66... Kd6 {[%clk 0:00:23.7]} 67. Ba2
{[%clk 0:00:20.8]} 67... Kc5 {[%clk 0:00:24.3]} 68. Bg8 {[%clk 0:00:21.7]} 68...
Kb4 {[%clk 0:00:25]} 69. Ba2 {[%clk 0:00:22.4]} 69... Kc3 {[%clk 0:00:25.7]} 70.
Bg8 {[%clk 0:00:23.3]} 70... Kb2 {[%clk 0:00:26.2]} 71. Bf7 {[%clk 0:00:23.5]}
71... Bb8 {[%clk 0:00:25.8]} 0-1

[Event "Early-Titled-Tuesday-Blitz-April-16-2024"]
[Site "Chess.com"]
[Date "2024.04.16"]
[Round "4"]
[White "WoolworthsManly"]
[Black "Artemiki"]
[Result "1/2-1/2"]
[WhiteElo "2674"]
[BlackElo "2430"]
[TimeControl "180+1"]
[EndTime "8:41:24 PDT"]
[Termination "Game drawn by agreement"]

1. e4 {[%clk 0:03:00.9]} 1... c5 {[%clk 0:02:59.4]} 2. Nf3 {[%clk 0:02:58.6]}
2... e6 {[%clk 0:02:49.8]} 3. d4 {[%clk 0:02:56.2]} 3... cxd4 {[%clk 0:02:50.7]}
4. Nxd4 {[%clk 0:02:56.6]} 4... Nc6 {[%clk 0:02:51.3]} 5. Nc3 {[%clk 0:02:56.5]}
5... Qc7 {[%clk 0:02:51.8]} 6. Ncb5 {[%clk 0:02:42.1]} 6... Qb8 {[%clk
0:02:44.6]} 7. Bd3 {[%clk 0:02:39.7]} 7... Nxd4 {[%clk 0:02:21.5]} 8. Nxd4
{[%clk 0:02:37.9]} 8... Bc5 {[%clk 0:02:22.1]} 9. Nb3 {[%clk 0:02:32.1]} 9...
Bb6 {[%clk 0:02:20.6]} 10. Qg4 {[%clk 0:02:30.1]} 10... Qe5 {[%clk 0:02:10.6]}
11. c3 {[%clk 0:02:18.2]} 11... Nf6 {[%clk 0:02:06.8]} 12. Qe2 {[%clk
0:02:18.1]} 12... Qb8 {[%clk 0:01:51.4]} 13. e5 {[%clk 0:02:15.6]} 13... Nd5
{[%clk 0:01:47.4]} 14. Bd2 {[%clk 0:02:07.9]} 14... a5 {[%clk 0:01:43.6]} 15.
Nd4 {[%clk 0:02:03.2]} 15... a4 {[%clk 0:01:27]} 16. Nb5 {[%clk 0:01:55.8]}
16... O-O {[%clk 0:01:16.1]} 17. c4 {[%clk 0:01:55]} 17... Ne7 {[%clk
0:01:12.8]} 18. Bb4 {[%clk 0:01:41.3]} 18... Ba5 {[%clk 0:01:07.6]} 19. Bxa5
{[%clk 0:01:34.4]} 19... Rxa5 {[%clk 0:01:08.5]} 20. f4 {[%clk 0:01:19.4]} 20...
b6 {[%clk 0:01:07.1]} 21. O-O {[%clk 0:01:09.1]} 21... Ba6 {[%clk 0:01:05.1]}
22. Nd6 {[%clk 0:01:07.4]} 22... f5 {[%clk 0:00:54.4]} 23. b4 {[%clk 0:00:50.9]}
23... axb3 {[%clk 0:00:51.2]} 24. axb3 {[%clk 0:00:51.4]} 24... Nc8 {[%clk
0:00:47.7]} 25. Nxc8 {[%clk 0:00:47.1]} 25... Rxc8 {[%clk 0:00:45.9]} 26. b4
{[%clk 0:00:45.7]} 26... Rxa1 {[%clk 0:00:42.6]} 27. Rxa1 {[%clk 0:00:46.6]}
27... Bb7 {[%clk 0:00:39.2]} 28. Qe3 {[%clk 0:00:38.9]} 28... Qc7 {[%clk
0:00:35.7]} 29. Be2 {[%clk 0:00:39.2]} 29... h6 {[%clk 0:00:32.7]} 30. h3 {[%clk
0:00:38.2]} 30... Ra8 {[%clk 0:00:29.1]} 31. Rxa8+ {[%clk 0:00:37.1]} 31... Bxa8
{[%clk 0:00:30]} 32. Kh2 {[%clk 0:00:37.2]} 32... Bc6 {[%clk 0:00:27.1]} 33. Qd4
{[%clk 0:00:36.1]} 33... Qb7 {[%clk 0:00:21]} 34. Bf1 {[%clk 0:00:35.1]} 34...
Qc7 {[%clk 0:00:19.5]} 35. g4 {[%clk 0:00:30.8]} 35... g6 {[%clk 0:00:15.9]} 36.
gxf5 {[%clk 0:00:30.3]} 36... gxf5 {[%clk 0:00:16.1]} 37. Qg1+ {[%clk 0:00:30]}
37... Kh7 {[%clk 0:00:15.5]} 38. Be2 {[%clk 0:00:29.9]} 38... Qd8 {[%clk
0:00:05.6]} 39. Bh5 {[%clk 0:00:29.7]} 39... Qg8 {[%clk 0:00:04.7]} 40. Qg3
{[%clk 0:00:28.5]} 40... Qg7 {[%clk 0:00:03.4]} 41. Qxg7+ {[%clk 0:00:25.2]}
41... Kxg7 {[%clk 0:00:04.3]} 42. Kg3 {[%clk 0:00:25.8]} 42... Kf8 {[%clk
0:00:04.4]} 43. Kf2 {[%clk 0:00:26.2]} 43... Ke7 {[%clk 0:00:04.7]} 44. Ke3
{[%clk 0:00:26.8]} 44... d6 {[%clk 0:00:05.1]} 45. Kd4 {[%clk 0:00:26.8]} 45...
b5 {[%clk 0:00:02.8]} 46. c5 {[%clk 0:00:25.7]} 46... d5 {[%clk 0:00:02.2]} 47.
Be2 {[%clk 0:00:23.7]} 47... Kf8 {[%clk 0:00:01.8]} 48. Bh5 {[%clk 0:00:23.7]}
48... Ke7 {[%clk 0:00:02.5]} 49. Ke3 {[%clk 0:00:23.3]} 49... Kf8 {[%clk
0:00:03.2]} 50. Kf2 {[%clk 0:00:23.9]} 50... Ke7 {[%clk 0:00:03.2]} 51. Kg3
{[%clk 0:00:24.2]} 51... Kf8 {[%clk 0:00:03.7]} 52. Kh4 {[%clk 0:00:23]} 52...
Kg7 {[%clk 0:00:04.2]} 53. Be2 {[%clk 0:00:21.8]} 53... Bd7 {[%clk 0:00:04.5]}
54. c6 {[%clk 0:00:20.5]} 54... Bxc6 {[%clk 0:00:04]} 55. Kg3 {[%clk 0:00:21.4]}
55... Kf8 {[%clk 0:00:03.1]} 56. Kf3 {[%clk 0:00:21.3]} 56... d4+ {[%clk
0:00:02.9]} 57. Kf2 {[%clk 0:00:21.6]} 57... Ke7 {[%clk 0:00:02.8]} 58. Ke1
{[%clk 0:00:22.2]} 58... Kd7 {[%clk 0:00:02.5]} 59. Kd2 {[%clk 0:00:22.8]} 59...
Be4 {[%clk 0:00:01.3]} 60. Bxb5+ {[%clk 0:00:22.4]} 60... Kc7 {[%clk 0:00:01.9]}
61. Bc4 {[%clk 0:00:22]} 61... Kb6 {[%clk 0:00:02.1]} 62. Bxe6 {[%clk
0:00:21.9]} 62... Kb5 {[%clk 0:00:02.7]} 63. Bf7 {[%clk 0:00:22.2]} 63... Kxb4
{[%clk 0:00:02.5]} 64. e6 {[%clk 0:00:22.7]} 64... Bd5 {[%clk 0:00:02.5]} 65.
Bg8 {[%clk 0:00:23.2]} 65... Bc6 {[%clk 0:00:02.5]} 66. e7 {[%clk 0:00:23]}
66... Be8 {[%clk 0:00:02.7]} 67. Be6 {[%clk 0:00:23.2]} 67... Kc5 {[%clk
0:00:03]} 68. Bxf5 {[%clk 0:00:23.5]} 68... Kd6 {[%clk 0:00:03.2]} 69. Kd3
{[%clk 0:00:24.1]} 69... Kxe7 {[%clk 0:00:03.5]} 70. Kxd4 {[%clk 0:00:24.8]}
70... Kf6 {[%clk 0:00:04.3]} 71. Bc8 {[%clk 0:00:24.9]} 71... Bg6 {[%clk
0:00:03.6]} 72. Ke3 {[%clk 0:00:25.1]} 72... Bc2 {[%clk 0:00:03.5]} 73. Kf3
{[%clk 0:00:25.5]} 73... Bg6 {[%clk 0:00:03.5]} 74. Kg4 {[%clk 0:00:26]} 74...
Bf7 {[%clk 0:00:03.9]} 75. Bb7 {[%clk 0:00:25.6]} 75... Be6+ {[%clk 0:00:02.1]}
76. Kh4 {[%clk 0:00:25.1]} 76... Bf7 {[%clk 0:00:02.7]} 77. Be4 {[%clk
0:00:24.6]} 77... Be8 {[%clk 0:00:03.2]} 78. Bf3 {[%clk 0:00:24.8]} 78... Bf7
{[%clk 0:00:03.5]} 79. Bg4 {[%clk 0:00:25.3]} 79... Be8 {[%clk 0:00:03.9]} 80.
Bh5 {[%clk 0:00:25.2]} 80... Bd7 {[%clk 0:00:04.1]} 81. Kg3 {[%clk 0:00:25.5]}
81... Bf5 {[%clk 0:00:04.1]} 82. Bg4 {[%clk 0:00:25.3]} 82... Bg6 {[%clk
0:00:04.4]} 83. Kh4 {[%clk 0:00:24]} 83... Bf7 {[%clk 0:00:04.7]} 1/2-1/2